fUSD/lending_fUSD_20240821
["ID","MTS","AMOUNT","RATE_DAILY","PERIOD"]
[335491067,1724271056032,-2863.74,0.00014246,2]
[335491068,1724271056041,-501.06,0.00014246,2]
[335491069,1724271056050,-1806.38,0.00014246,2]
[335491070,1724271056060,-500.0,0.00014246,2]
[335491071,1724271056069,-4240.59,0.00014246,2]
[335491072,1724271056079,-888.38,0.00014246,2]
[335491073,1724271056092,-500.0,0.00014246,2]
[335491074,1724271056101,-1356.0,0.00014246,2]
[335491075,1724271056111,-956.25,0.00014246,2]
[335491076,1724271056120,-598.4,0.00014246,2]
[335491077,1724271056130,-2136.97,0.00014246,2]
[335491078,1724271056139,-16675.59,0.00014246,2]
[335491079,1724271056149,-2045.67,0.00014246,2]
[335491080,1724271056159,-1258.6,0.00014246,2]
[335491081,1724271056170,-500.0,0.00014246,2]
[335491082,1724271056179,-200.0,0.0001425,2]
[335491083,1724271056189,-1000.0,0.000144,3]
[335491084,1724271056199,-241.69,0.00014453,2]
[335491085,1724271056209,-265.0,0.0001448,2]
[335491086,1724271056218,-200.0,0.0001448,2]
[335491087,1724271056228,-20000.0,0.000145,2]
[335491088,1724271056238,-282.11466018,0.0001452,2]
[335491089,1724271056248,-500.0,0.0001452,2]
[335491090,1724271056258,-557.53061422,0.0001452,2]
[335491091,1724271056385,-500.0,0.0001452,2]
[335491092,1724271056395,-500.0,0.0001452,2]
[335491093,1724271056405,-500.0,0.0001452,2]
[335491094,1724271056414,-500.0,0.0001452,2]
[335491095,1724271056423,-500.0,0.0001452,2]
[335491096,1724271056433,-500.0,0.0001452,2]
[335491097,1724271056442,-500.0,0.0001452,2]
[335491098,1724271056452,-500.0,0.0001452,2]
[335491099,1724271056462,-500.0,0.0001452,2]
[335491100,1724271056471,-849.75,0.0001452,2]
[335491101,1724271056481,-500.0,0.0001452,2]
[335491102,1724271056490,-553.65,0.0001452,2]
[335491103,1724271056499,-500.0,0.0001452,2]
[335491104,1724271056509,-500.0,0.0001452,2]
[335491105,1724271056518,-500.0,0.0001452,2]
[335491106,1724271056528,-2476.81,0.0001452,2]
[335491107,1724271056537,-500.0,0.0001452,2]
[335491108,1724271056547,-500.0,0.0001452,2]
[335491109,1724271056556,-819.63,0.0001452,2]
[335491110,1724271056566,-500.0,0.0001452,2]
[335491111,1724271056575,-500.0,0.0001452,2]
[335491112,1724271056585,-500.0,0.0001452,2]
[335491113,1724271056595,-500.0,0.0001452,2]
[335491114,1724271056604,-500.0,0.0001452,2]
[335491115,1724271056613,-953.0,0.0001452,2]
[335491116,1724271056622,-500.0,0.0001452,2]
[335491117,1724271056631,-500.0,0.0001452,2]
[335491118,1724271056641,-553.4,0.0001452,2]
[335491119,1724271056651,-2372.5,0.0001452,2]
[335491120,1724271056660,-1887.65,0.0001452,2]
[335491121,1724271056670,-500.0,0.0001452,2]
[335491122,1724271056679,-500.0,0.0001452,2]
[335491123,1724271056689,-838.39,0.0001452,2]
[335491124,1724271056699,-500.0,0.0001452,2]
[335491125,1724271056708,-942.96,0.0001452,2]
[335491126,1724271056717,-500.0,0.0001452,2]
[335491127,1724271056726,-2031.17,0.0001452,2]
[335491128,1724271056735,-500.0,0.0001452,2]
[335491129,1724271056745,-1086.02,0.0001452,2]
[335491130,1724271056754,-500.0,0.0001452,2]
[335491131,1724271056763,-500.0,0.0001452,2]
[335491132,1724271056772,-500.0,0.0001452,2]
[335491133,1724271056781,-500.0,0.0001452,2]
[335491134,1724271056791,-500.0,0.0001452,2]
[335491135,1724271056800,-500.0,0.0001452,2]
[335491136,1724271056810,-1406.4,0.0001452,2]
[335491137,1724271056819,-470.42552019,0.0001452,2]
[335491138,1724271056829,-2109.32,0.0001452,2]
[335491139,1724271056839,-506.39,0.0001452,2]
[335491140,1724271056848,-500.0,0.0001452,2]
[335491141,1724271056858,-500.0,0.0001452,2]
[335491142,1724271056866,-500.0,0.0001452,2]
[335491143,1724271056876,-500.0,0.0001452,2]
[335491144,1724271056886,-633.06,0.0001452,2]
[335491145,1724271056895,-2082.07,0.0001452,2]
[335491146,1724271056904,-500.0,0.0001452,2]
[335491147,1724271056913,-1272.91,0.0001452,2]
[335491148,1724271056923,-877.63,0.0001452,2]
[335491149,1724271056932,-500.0,0.0001452,2]
[335491150,1724271056941,-2827.83,0.0001452,2]
[335491151,1724271056950,-500.0,0.0001452,2]
[335491152,1724271056959,-500.0,0.0001452,2]
[335491153,1724271056968,-679.05,0.0001452,2]
[335491154,1724271056977,-2900.23,0.0001452,2]
[335491155,1724271056986,-3837.38,0.0001452,2]
[335491156,1724271056995,-1312.2,0.0001452,2]
[335491157,1724271057005,-5651.96,0.0001452,2]
[335491158,1724271057014,-2385.71,0.0001452,2]
[335491159,1724271057023,-2073.03,0.0001452,2]
[335491160,1724271057032,-727.0,0.0001452,2]
[335491161,1724271057042,-4428.25,0.0001452,2]
[335491162,1724271057051,-4040.23,0.0001452,2]
[335491163,1724271057061,-500.0,0.0001452,2]
[335491164,1724271057070,-500.0,0.0001452,2]
[335491165,1724271057079,-1758.36,0.0001452,2]
[335491166,1724271057090,-8908.85,0.0001452,2]
[335491167,1724271057099,-2776.63,0.0001452,2]
[335491168,1724271057108,-1849.24,0.0001452,2]
[335491169,1724271057117,-1976.14,0.0001452,2]
[335491170,1724271057126,-4975.15,0.0001452,2]
[335491171,1724271057135,-2893.92,0.0001452,2]
[335491172,1724271057144,-3907.53,0.0001452,2]
[335491173,1724271057153,-652.92,0.0001452,2]
[335491174,1724271057162,-8204.23,0.0001452,2]
[335491175,1724271057171,-715.41,0.0001452,2]
[335491176,1724271057180,-804.61,0.0001452,2]
[335491177,1724271057189,-3869.94,0.0001452,2]
[335491178,1724271057198,-500.0,0.0001452,2]
[335491179,1724271057210,-500.0,0.0001452,2]
[335491180,1724271057219,-560.54,0.0001452,2]
[335491181,1724271057228,-500.0,0.0001452,2]
[335491182,1724271057237,-13097.07,0.0001452,2]
[335491183,1724271057246,-569.23,0.0001452,2]
[335491184,1724271057255,-500.0,0.0001452,2]
[335491185,1724271057265,-500.0,0.0001452,2]
[335491186,1724271057276,-5246.21,0.0001452,2]
[335491187,1724271057286,-508.22,0.0001452,2]
[335491188,1724271057295,-500.0,0.0001452,2]
[335491189,1724271057304,-579.28,0.0001452,2]
[335491190,1724271057315,-540.92,0.0001452,2]
[335491191,1724271057324,-770.64,0.0001452,2]
[335491192,1724271057335,-1221.8,0.0001452,2]
[335491193,1724271057345,-592.34,0.0001452,2]
[335491194,1724271057354,-516.26,0.0001452,2]
[335491195,1724271057364,-500.0,0.0001452,2]
[335491196,1724271057372,-500.0,0.0001452,2]
[335491197,1724271057381,-1609.75,0.0001452,2]
[335491198,1724271057390,-1751.79,0.0001452,2]
[335491199,1724271057399,-500.0,0.0001452,2]
[335491200,1724271057408,-2912.27,0.0001452,2]
[335491201,1724271057418,-4271.33,0.0001452,2]
[335491202,1724271057427,-892.56,0.0001452,2]
[335491203,1724271057437,-500.0,0.0001452,2]
[335491204,1724271057446,-1349.34,0.0001452,2]
[335491205,1724271057455,-1872.48,0.0001452,2]
[335491206,1724271057464,-500.0,0.0001452,2]
[335491207,1724271057474,-1874.41,0.0001452,2]
[335491208,1724271057483,-477.62546939,0.0001452,2]
[335491209,1724271057492,-843.59,0.0001452,2]
[335491210,1724271057502,-572.46,0.0001452,2]
[335491211,1724271057511,-500.0,0.0001452,2]
[335491212,1724271057520,-240.48,0.0001452,2]
[335491213,1724271057530,-500.0,0.0001452,2]
[335491214,1724271057539,-1812.21,0.0001452,2]
[335491215,1724271057548,-1297.86,0.0001452,2]
[335491216,1724271057557,-8174.27,0.0001452,2]
[335491217,1724271057566,-574.93,0.0001452,2]
[335491218,1724271057575,-778.72,0.0001452,2]
[335491219,1724271057584,-2107.46,0.0001452,2]
[335491220,1724271057593,-768.88,0.0001452,2]
[335491221,1724271057602,-2739.14,0.0001452,2]
[335491222,1724271057611,-23349.98,0.0001452,2]
[335491223,1724271057620,-1463.51,0.0001452,2]
[335491224,1724271057629,-500.0,0.0001452,2]
[335491225,1724271057639,-1339.48,0.0001452,2]
[335491226,1724271057649,-3622.41,0.0001452,2]
[335491227,1724271057658,-1649.78,0.0001452,2]
[335491228,1724271057667,-1449.44,0.0001452,2]
[335491229,1724271057677,-500.0,0.0001452,2]
[335491230,1724271057686,-11751.7,0.0001452,2]
[335491231,1724271057695,-905.44,0.0001452,2]
[335491232,1724271057705,-1388.58,0.0001452,2]
[335491233,1724271057714,-864.58,0.0001452,2]
[335491234,1724271057723,-3327.77,0.0001452,2]
[335491235,1724271057732,-1453.56,0.0001452,2]
[335491236,1724271057741,-500.0,0.0001452,2]
[335491237,1724271057750,-2863.74,0.0001452,2]
[335491238,1724271057759,-501.06,0.0001452,2]
[335491239,1724271057769,-1806.38,0.0001452,2]
[335491240,1724271057778,-500.0,0.0001452,2]
[335491241,1724271057787,-4240.59,0.0001452,2]
[335491242,1724271057796,-888.38,0.0001452,2]
[335491243,1724271057805,-500.0,0.0001452,2]
[335491244,1724271057814,-1356.0,0.0001452,2]
[335491245,1724271057823,-956.25,0.0001452,2]
[335491246,1724271057832,-598.4,0.0001452,2]
[335491247,1724271057841,-2136.97,0.0001452,2]
[335491248,1724271057850,-16675.59,0.0001452,2]
[335491249,1724271057859,-2045.67,0.0001452,2]
[335491250,1724271057868,-1258.6,0.0001452,2]
[335491251,1724271057878,-500.0,0.0001452,2]
[335491252,1724271057888,-794.0,0.00014554,2]
[335491253,1724271057897,-794.0,0.00014554,2]
[335491254,1724271057906,-153.18864,0.00014644,2]
[335491255,1724271057916,-3727.0,0.0001465,2]
[335491256,1724271057925,-1205.0,0.0001465,2]
[335491257,1724271057934,-5847.0,0.0001465,2]
[335491258,1724271057943,-21777.0,0.0001465,2]
[335491259,1724271057953,-289.0,0.0001465,2]
[335491260,1724271057963,-1674.0,0.0001465,2]
[335491261,1724271057972,-155.0,0.00014681,2]
[335491262,1724271057981,-155.17600655,0.00014681,2]
[335491263,1724271057990,-4949.139336,0.000147,14]
[335491264,1724271057999,-200.0,0.000147,2]
[335491265,1724271058009,-600.0,0.000147,2]
[335491266,1724271058018,-200.0,0.0001471,2]
[335491267,1724271058027,-4396.83,0.00014793,2]
[335491268,1724271058036,-500.0,0.00014794,2]
[335491269,1724271058045,-506.46,0.00014794,2]
[335491270,1724271058055,-500.0,0.00014794,2]
[335491271,1724271058064,-500.0,0.00014794,2]
[335491272,1724271058073,-500.0,0.00014794,2]
[335491273,1724271058083,-500.0,0.00014794,2]
[335491274,1724271058102,-627.21281943,0.00014794,2]
[335491275,1724271058112,-500.0,0.00014794,2]
[335491276,1724271058121,-500.0,0.00014794,2]
[335491277,1724271058130,-500.0,0.00014794,2]
[335491278,1724271058139,-849.75,0.00014794,2]
[335491279,1724271058148,-500.0,0.00014794,2]
[335491280,1724271058158,-553.65,0.00014794,2]
[335491281,1724271058168,-500.0,0.00014794,2]
[335491282,1724271058177,-500.0,0.00014794,2]
[335491283,1724271058187,-500.0,0.00014794,2]
[335491284,1724271058196,-2476.81,0.00014794,2]
[335491285,1724271058206,-500.0,0.00014794,2]
[335491286,1724271058216,-500.0,0.00014794,2]
[335491287,1724271058225,-819.63,0.00014794,2]
[335491288,1724271058234,-500.0,0.00014794,2]
[335491289,1724271058244,-500.0,0.00014794,2]
[335491290,1724271058254,-500.0,0.00014794,2]
[335491291,1724271058263,-500.0,0.00014794,2]
[335491292,1724271058273,-500.0,0.00014794,2]
[335491293,1724271058286,-953.0,0.00014794,2]
[335491294,1724271058295,-500.0,0.00014794,2]
[335491295,1724271058304,-500.0,0.00014794,2]
[335491296,1724271058314,-553.4,0.00014794,2]
[335491297,1724271058326,-2372.5,0.00014794,2]
[335491298,1724271058336,-1887.65,0.00014794,2]
[335491299,1724271058346,-500.0,0.00014794,2]
[335491300,1724271058356,-500.0,0.00014794,2]
[335491301,1724271058366,-838.39,0.00014794,2]
[335491302,1724271058376,-500.0,0.00014794,2]
[335491303,1724271058385,-942.96,0.00014794,2]
[335491304,1724271058394,-500.0,0.00014794,2]
[335491305,1724271058404,-2031.17,0.00014794,2]
[335491306,1724271058414,-500.0,0.00014794,2]
[335491307,1724271058423,-1086.02,0.00014794,2]
[335491308,1724271058432,-500.0,0.00014794,2]
[335491309,1724271058442,-500.0,0.00014794,2]
[335491310,1724271058451,-500.0,0.00014794,2]
[335491311,1724271058460,-500.0,0.00014794,2]
[335491312,1724271058470,-500.0,0.00014794,2]
[335491313,1724271058479,-500.0,0.00014794,2]
[335491314,1724271058489,-1406.4,0.00014794,2]
[335491315,1724271058498,-2109.32,0.00014794,2]
[335491316,1724271058507,-506.39,0.00014794,2]
[335491317,1724271058516,-500.0,0.00014794,2]
[335491318,1724271058526,-500.0,0.00014794,2]
[335491319,1724271058535,-500.0,0.00014794,2]
[335491320,1724271058544,-500.0,0.00014794,2]
[335491321,1724271058553,-633.06,0.00014794,2]
[335491322,1724271058563,-2082.07,0.00014794,2]
[335491323,1724271058572,-500.0,0.00014794,2]
[335491324,1724271058581,-1272.91,0.00014794,2]
[335491325,1724271058590,-877.63,0.00014794,2]
[335491326,1724271058599,-500.0,0.00014794,2]
[335491327,1724271058609,-2827.83,0.00014794,2]
[335491328,1724271058618,-169.62501079,0.00014794,2]
[335491329,1724271058627,-500.0,0.00014794,2]
[335491330,1724271058636,-679.05,0.00014794,2]
[335491331,1724271058644,-2900.23,0.00014794,2]
[335491332,1724271058653,-3837.38,0.00014794,2]
[335491333,1724271058662,-1312.2,0.00014794,2]
[335491334,1724271058671,-5651.96,0.00014794,2]
[335491335,1724271058681,-2385.71,0.00014794,2]
[335491336,1724271058690,-2073.03,0.00014794,2]
[335491337,1724271058699,-727.0,0.00014794,2]
[335491338,1724271058708,-4428.25,0.00014794,2]
[335491339,1724271058717,-4040.23,0.00014794,2]
[335491340,1724271058726,-500.0,0.00014794,2]
[335491341,1724271058735,-500.0,0.00014794,2]
[335491342,1724271058744,-1758.36,0.00014794,2]
[335491343,1724271058753,-8908.85,0.00014794,2]
[335491344,1724271058762,-2776.63,0.00014794,2]
[335491345,1724271058771,-1849.24,0.00014794,2]
[335491346,1724271058780,-1976.14,0.00014794,2]
[335491347,1724271058789,-4975.15,0.00014794,2]
[335491348,1724271058799,-2893.92,0.00014794,2]
[335491349,1724271058807,-3907.53,0.00014794,2]
[335491350,1724271058817,-652.92,0.00014794,2]
[335491351,1724271058827,-8204.23,0.00014794,2]
[335491352,1724271058837,-715.41,0.00014794,2]
[335491353,1724271058846,-804.61,0.00014794,2]
[335491354,1724271058855,-3869.94,0.00014794,2]
[335491355,1724271058864,-500.0,0.00014794,2]
[335491356,1724271058873,-500.0,0.00014794,2]
[335491357,1724271058883,-560.54,0.00014794,2]
[335491358,1724271058893,-500.0,0.00014794,2]
[335491359,1724271058902,-13097.07,0.00014794,2]
[335491360,1724271058911,-569.23,0.00014794,2]
[335491361,1724271058920,-500.0,0.00014794,2]
[335491362,1724271058929,-500.0,0.00014794,2]
[335491363,1724271058938,-5246.21,0.00014794,2]
[335491364,1724271058947,-508.22,0.00014794,2]
[335491365,1724271058956,-500.0,0.00014794,2]
[335491366,1724271059076,-579.28,0.00014794,2]
[335491367,1724271059086,-540.92,0.00014794,2]
[335491368,1724271059095,-770.64,0.00014794,2]
[335491369,1724271059104,-1221.8,0.00014794,2]
[335491370,1724271059113,-592.34,0.00014794,2]
[335491371,1724271059122,-516.26,0.00014794,2]
[335491372,1724271059131,-500.0,0.00014794,2]
[335491373,1724271059140,-500.0,0.00014794,2]
[335491374,1724271059149,-1609.75,0.00014794,2]
[335491375,1724271059158,-1751.79,0.00014794,2]
[335491376,1724271059167,-500.0,0.00014794,2]
[335491377,1724271059176,-2912.27,0.00014794,2]
[335491378,1724271059185,-4271.33,0.00014794,2]
[335491379,1724271059194,-892.56,0.00014794,2]
[335491380,1724271059203,-500.0,0.00014794,2]
[335491381,1724271059213,-1349.34,0.00014794,2]
[335491382,1724271059222,-1872.48,0.00014794,2]
[335491383,1724271059231,-500.0,0.00014794,2]
[335491384,1724271059240,-1874.41,0.00014794,2]
[335491385,1724271059249,-843.59,0.00014794,2]
[335491386,1724271059258,-572.46,0.00014794,2]
[335491387,1724271059270,-500.0,0.00014794,2]
[335491388,1724271059280,-500.0,0.00014794,2]
[335491389,1724271059289,-1812.21,0.00014794,2]
[335491390,1724271059298,-1297.86,0.00014794,2]
[335491391,1724271059308,-8174.27,0.00014794,2]
[335491392,1724271059317,-778.72,0.00014794,2]
[335491393,1724271059327,-574.93,0.00014794,2]
[335491394,1724271059336,-2107.46,0.00014794,2]
[335491395,1724271059346,-768.88,0.00014794,2]
[335491396,1724271059357,-2739.14,0.00014794,2]
[335491397,1724271059367,-23349.98,0.00014794,2]
[335491398,1724271059376,-1463.51,0.00014794,2]
[335491399,1724271059385,-500.0,0.00014794,2]
[335491400,1724271059395,-1339.48,0.00014794,2]
[335491401,1724271059404,-3622.41,0.00014794,2]
[335491402,1724271059413,-1649.78,0.00014794,2]
[335491403,1724271059423,-1449.44,0.00014794,2]
[335491404,1724271059432,-500.0,0.00014794,2]
[335491405,1724271059442,-11751.7,0.00014794,2]
[335491406,1724271059451,-905.44,0.00014794,2]
[335491407,1724271059460,-1388.58,0.00014794,2]
[335491408,1724271059469,-864.58,0.00014794,2]
[335491409,1724271059478,-3327.77,0.00014794,2]
[335491410,1724271059487,-1453.56,0.00014794,2]
[335491411,1724271059495,-500.0,0.00014794,2]
[335491412,1724271059505,-2863.74,0.00014794,2]
[335491413,1724271059514,-501.06,0.00014794,2]
[335491414,1724271059524,-1806.38,0.00014794,2]
[335491415,1724271059534,-500.0,0.00014794,2]
[335491416,1724271059544,-4240.59,0.00014794,2]
[335491417,1724271059554,-888.38,0.00014794,2]
[335491418,1724271059563,-500.0,0.00014794,2]
[335491419,1724271059572,-1356.0,0.00014794,2]
[335491420,1724271059582,-956.25,0.00014794,2]
[335491421,1724271059592,-598.4,0.00014794,2]
[335491422,1724271059601,-2136.97,0.00014794,2]
[335491423,1724271059610,-16675.59,0.00014794,2]
[335491424,1724271059619,-2045.67,0.00014794,2]
[335491425,1724271059629,-1258.6,0.00014794,2]
[335491426,1724271059639,-500.0,0.00014794,2]
[335491427,1724271059648,-249295.24427447,0.00014799,2]
[335491428,1724271059657,-8176.04654027,0.00014799,2]
[335491429,1724271059666,-3652162.0,0.000148,3]
[335491430,1724271059675,-170.32,0.00014807,2]
[335491431,1724271059685,-265.0,0.0001482,2]
[335491432,1724271059695,-152.79,0.00014844,2]
[335491433,1724271059704,-400.0,0.000149,5]
[335491434,1724271059714,-200.0,0.0001492,2]
[335491435,1724271059723,-200.0,0.0001494,2]
[335491436,1724271059733,-485.62,0.0001496,2]
[335491437,1724271059742,-201.0,0.0001496,2]
[335491438,1724271059751,-150.0,0.00014995,2]
[335491439,1724271059760,-150.0,0.00014995,2]
[335491440,1724271059769,-150.0,0.00014995,2]
[335491441,1724271059778,-491.33503944,0.00015,2]
[335491442,1724271059787,-5003.0,0.00015,2]
[335491443,1724271059798,-624.84641014,0.00015,2]
[335491444,1724271059809,-496.0,0.00015,2]
[335491445,1724271059818,-155.0,0.00015,2]
[335491446,1724271059828,-676.90019041,0.00015,2]
[335491447,1724271059837,-19900.0,0.00015,2]
[335491448,1724271059847,-1000.60202394,0.00015,2]
[335491449,1724271059856,-3249.0,0.00015,2]
[335491450,1724271059865,-953.0,0.00015,2]
[335491451,1724271059874,-1923.0,0.00015026,2]
[335491452,1724271059884,-623.0,0.00015026,2]
[335491453,1724271059893,-1544.0,0.00015026,2]
[335491454,1724271059902,-1258.0,0.00015026,2]
[335491455,1724271059912,-150.0,0.00015026,2]
[335491456,1724271059922,-447.0,0.00015026,2]
[335491457,1724271059931,-810.0,0.00015026,2]
[335491458,1724271059940,-556.0,0.00015026,2]
[335491459,1724271059949,-150.0,0.00015026,2]
[335491460,1724271059959,-551.0,0.00015026,2]
[335491461,1724271059967,-1896.0,0.00015026,2]
[335491462,1724271059977,-1166.0,0.00015026,2]
[335491463,1724271059986,-248.0,0.00015026,2]
[335491464,1724271059995,-3319.0,0.00015026,2]
[335491465,1724271060004,-764.0,0.00015026,2]
[335491466,1724271060013,-150.0,0.00015065,2]
[335491467,1724271060023,-4396.83,0.00015067,2]
[335491468,1724271060033,-500.0,0.00015068,2]
[335491469,1724271060042,-500.0,0.00015068,2]
[335491470,1724271060052,-500.0,0.00015068,2]
[335491471,1724271060061,-500.0,0.00015068,2]
[335491472,1724271060071,-500.0,0.00015068,2]
[335491473,1724271060080,-500.0,0.00015068,2]
[335491474,1724271060090,-500.0,0.00015068,2]
[335491475,1724271060099,-500.0,0.00015068,2]
[335491476,1724271060108,-849.75,0.00015068,2]
[335491477,1724271060117,-500.0,0.00015068,2]
[335491478,1724271060126,-553.65,0.00015068,2]
[335491479,1724271060136,-500.0,0.00015068,2]
[335491480,1724271060145,-500.0,0.00015068,2]
[335491481,1724271060155,-500.0,0.00015068,2]
[335491482,1724271060164,-2476.81,0.00015068,2]
[335491483,1724271060174,-500.0,0.00015068,2]
[335491484,1724271060183,-500.0,0.00015068,2]
[335491485,1724271060193,-819.63,0.00015068,2]
[335491486,1724271060202,-500.0,0.00015068,2]
[335491487,1724271060211,-500.0,0.00015068,2]
[335491488,1724271060220,-500.0,0.00015068,2]
[335491489,1724271060229,-500.0,0.00015068,2]
[335491490,1724271060239,-500.0,0.00015068,2]
[335491491,1724271060248,-953.0,0.00015068,2]
[335491492,1724271060258,-500.0,0.00015068,2]
[335491493,1724271060270,-500.0,0.00015068,2]
[335491494,1724271060279,-553.4,0.00015068,2]
[335491495,1724271060289,-2372.5,0.00015068,2]
[335491496,1724271060298,-1887.65,0.00015068,2]
[335491497,1724271060308,-500.0,0.00015068,2]
[335491498,1724271060318,-500.0,0.00015068,2]
[335491499,1724271060327,-838.39,0.00015068,2]
[335491500,1724271060335,-500.0,0.00015068,2]
[335491501,1724271060346,-942.96,0.00015068,2]
[335491502,1724271060355,-500.0,0.00015068,2]
[335491503,1724271060364,-2031.17,0.00015068,2]
[335491504,1724271060373,-500.0,0.00015068,2]
[335491505,1724271060382,-1086.02,0.00015068,2]
[335491506,1724271060391,-500.0,0.00015068,2]
[335491507,1724271060400,-500.0,0.00015068,2]
[335491508,1724271060410,-500.0,0.00015068,2]
[335491509,1724271060418,-500.0,0.00015068,2]
[335491510,1724271060427,-500.0,0.00015068,2]
[335491511,1724271060437,-500.0,0.00015068,2]
[335491512,1724271060446,-1406.4,0.00015068,2]
[335491513,1724271060455,-2109.32,0.00015068,2]
[335491514,1724271060464,-506.39,0.00015068,2]
[335491515,1724271060474,-500.0,0.00015068,2]
[335491516,1724271060483,-500.0,0.00015068,2]
[335491517,1724271060491,-500.0,0.00015068,2]
[335491518,1724271060502,-500.0,0.00015068,2]
[335491519,1724271060511,-633.06,0.00015068,2]
[335491520,1724271060520,-2082.07,0.00015068,2]
[335491521,1724271060530,-500.0,0.00015068,2]
[335491522,1724271060539,-1272.91,0.00015068,2]
[335491523,1724271060548,-877.63,0.00015068,2]
[335491524,1724271060558,-500.0,0.00015068,2]
[335491525,1724271060567,-2827.83,0.00015068,2]
[335491526,1724271060577,-500.0,0.00015068,2]
[335491527,1724271060586,-679.05,0.00015068,2]
[335491528,1724271060596,-2900.23,0.00015068,2]
[335491529,1724271060606,-3837.38,0.00015068,2]
[335491530,1724271060615,-1312.2,0.00015068,2]
[335491531,1724271060625,-5651.96,0.00015068,2]
[335491532,1724271060634,-2385.71,0.00015068,2]
[335491533,1724271060643,-2073.03,0.00015068,2]
[335491534,1724271060653,-727.0,0.00015068,2]
[335491535,1724271060662,-4428.25,0.00015068,2]
[335491536,1724271060671,-4040.23,0.00015068,2]
[335491537,1724271060680,-500.0,0.00015068,2]
[335491538,1724271060689,-500.0,0.00015068,2]
[335491539,1724271060699,-1758.36,0.00015068,2]
[335491540,1724271060708,-8908.85,0.00015068,2]
[335491541,1724271060717,-2776.63,0.00015068,2]
[335491542,1724271060727,-1849.24,0.00015068,2]
[335491543,1724271060736,-1976.14,0.00015068,2]
[335491544,1724271060746,-4975.15,0.00015068,2]
[335491545,1724271060755,-2893.92,0.00015068,2]
[335491546,1724271060765,-3907.53,0.00015068,2]
[335491547,1724271060774,-652.92,0.00015068,2]
[335491548,1724271060784,-8204.23,0.00015068,2]
[335491549,1724271060793,-715.41,0.00015068,2]
[335491550,1724271060802,-804.61,0.00015068,2]
[335491551,1724271060811,-3869.94,0.00015068,2]
[335491552,1724271060820,-500.0,0.00015068,2]
[335491553,1724271060829,-500.0,0.00015068,2]
[335491554,1724271060840,-560.54,0.00015068,2]
[335491555,1724271060849,-13097.07,0.00015068,2]
[335491556,1724271060864,-564.19707553,0.00015068,2]
[335491557,1724271060875,-569.23,0.00015068,2]
[335491558,1724271060884,-500.0,0.00015068,2]
[335491559,1724271060894,-500.0,0.00015068,2]
[335491560,1724271060904,-5246.21,0.00015068,2]
[335491561,1724271060913,-508.22,0.00015068,2]
[335491562,1724271060923,-216.2048561,0.00015068,2]
[335491563,1724271060932,-579.28,0.00015068,2]
[335491564,1724271060941,-540.92,0.00015068,2]
[335491565,1724271060950,-770.64,0.00015068,2]
[335491566,1724271060961,-1221.8,0.00015068,2]